bitfinex/quotes_BTCUSD_20250303
["timestamp","ask_amount","ask_price","bid_price","bid_amount"]
[1741022666832,0.55692437,90639.0,90638.0,4e-07]
[1741022667413,0.55892437,90639.0,90638.0,4e-07]
[1741022667907,0.67346522,90639.0,90638.0,4e-07]
[1741022668592,0.99686522,90639.0,90638.0,4e-07]
[1741022668798,1.10578166,90639.0,90638.0,4e-07]
[1741022669127,1.20578166,90639.0,90638.0,4e-07]
[1741022669391,1.22308162,90639.0,90638.0,4e-07]
[1741022670099,1.11416518,90639.0,90638.0,4e-07]
[1741022672493,1.01416518,90639.0,90638.0,4e-07]
[1741022672671,1.11416518,90639.0,90638.0,4e-07]
[1741022673662,1.01416518,90639.0,90638.0,4e-07]
[1741022674111,1.11416518,90639.0,90638.0,4e-07]
[1741022674576,1.20236518,90639.0,90638.0,4e-07]
[1741022676866,1.10236518,90639.0,90638.0,4e-07]
[1741022677072,0.646115,90626.0,90625.0,2e-07]
[1741022677441,0.546148,90608.0,90590.0,0.0003402]
[1741022677596,0.64884885,90608.0,90590.0,0.0003402]
[1741022678244,0.74884885,90608.0,90590.0,0.0003402]
[1741022678404,0.74984885,90608.0,90590.0,0.0003402]
[1741022678809,1.17324885,90608.0,90607.0,0.00010937]
[1741022679180,0.92811985,90591.0,90590.0,2e-07]
[1741022679359,0.665601,90579.0,90578.0,8e-07]
[1741022679596,0.85010185,90579.0,90578.0,2.8e-07]
[1741022679796,0.88083694,90579.0,90578.0,2.8e-07]
[1741022679925,0.89204393,90579.0,90578.0,2.8e-07]
[1741022680327,0.76130884,90579.0,90578.0,2.8e-07]
[1741022680532,0.86130884,90579.0,90578.0,2.8e-07]
[1741022680735,0.79204393,90579.0,90578.0,2.8e-07]
[1741022681130,0.16565,90552.0,90540.0,0.0003402]
[1741022681335,0.87721,90552.0,90551.0,0.00079505]
[1741022681802,0.57721,90552.0,90551.0,0.00079505]
[1741022683878,0.96775085,90552.0,90551.0,0.00079505]
[1741022684029,1.06775085,90552.0,90551.0,0.00079505]
[1741022684842,0.96775085,90552.0,90551.0,0.00079505]
[1741022684989,0.96775085,90552.0,90551.0,0.00379505]
[1741022685184,0.65321,90552.0,90551.0,0.00079505]
[1741022685630,0.69406473,90552.0,90551.0,0.00113525]
[1741022686045,0.69006473,90552.0,90551.0,0.00113525]
[1741022687058,0.67275085,90552.0,90551.0,0.00113525]
[1741022687249,0.97275085,90552.0,90551.0,0.00113525]
[1741022687458,0.96775085,90552.0,90551.0,0.00113525]
[1741022687634,0.97175085,90552.0,90551.0,0.00113525]
[1741022687814,0.97275085,90552.0,90551.0,0.00113525]
[1741022688154,0.97718491,90552.0,90551.0,0.00113525]
[1741022688456,0.78218491,90552.0,90551.0,0.00113525]
[1741022688755,1.08218491,90552.0,90551.0,0.00113525]
[1741022688921,1.07918491,90552.0,90551.0,0.00113525]
[1741022689115,1.08018491,90552.0,90551.0,0.00113525]
[1741022690074,1.00418491,90552.0,90551.0,0.00113525]
[1741022690224,0.90418491,90552.0,90551.0,0.00113525]
[1741022690410,0.88021,90552.0,90551.0,0.00113525]
[1741022690626,0.88421,90552.0,90551.0,0.00113525]
[1741022691048,0.88121,90552.0,90551.0,0.00113525]
[1741022691670,0.87721,90552.0,90551.0,0.00113525]
[1741022692093,0.87821,90552.0,90551.0,0.00113525]
[1741022693238,0.79005,90552.0,90551.0,0.00113525]
[1741022693443,0.87821,90552.0,90551.0,0.00113525]
[1741022694206,0.89452354,90552.0,90551.0,0.00113525]
[1741022694630,0.89452354,90552.0,90551.0,0.00213525]
[1741022695251,0.89452354,90552.0,90551.0,0.00113525]
[1741022695621,0.87721,90552.0,90551.0,0.00113525]
[1741022697132,0.57721,90552.0,90551.0,0.00113525]
[1741022697451,0.89175085,90552.0,90551.0,0.00113525]
[1741022697896,0.89275085,90552.0,90551.0,0.00113525]
[1741022698476,0.89175085,90552.0,90551.0,0.00113525]
[1741022698673,0.89575085,90552.0,90551.0,0.00113525]
[1741022698877,0.89775085,90552.0,90551.0,0.00113525]
[1741022699312,0.89975085,90552.0,90551.0,0.00113525]
[1741022700564,0.1,90541.0,90538.0,9.1e-07]
[1741022700772,0.66061985,90536.0,90535.0,0.0003402]
[1741022700979,0.66061985,90536.0,90511.0,0.0004]
[1741022700980,0.48025185,90519.0,90511.0,0.0004]
[1741022701178,0.97077185,90519.0,90511.0,0.0004]
[1741022701313,0.41152,90519.0,90511.0,0.0004]
[1741022701519,0.489111,90519.0,90511.0,0.0004]
[1741022701721,0.577231,90519.0,90511.0,0.0004]
[1741022701919,0.41152,90519.0,90511.0,0.076]
[1741022702182,0.41152,90519.0,90518.0,0.2138518]
[1741022702183,0.3234,90519.0,90518.0,0.2138518]
[1741022702508,0.3234,90519.0,90518.0,0.0501398]
[1741022702707,0.08812,90534.0,90518.0,0.0481398]
[1741022702863,0.165705,90523.0,90518.0,0.0481398]
[1741022703241,0.220935,90525.0,90518.0,0.0481398]
[1741022703449,0.220913,90533.0,90518.0,0.0481398]
[1741022703633,0.00193338,90532.0,90518.0,0.0481398]
[1741022703839,0.08812,90534.0,90518.0,0.0481398]
[1741022704044,0.3234,90533.0,90532.0,0.165687]
[1741022704474,0.34071422,90533.0,90532.0,0.165687]
[1741022704669,0.34071422,90533.0,90519.0,0.0797]
[1741022704871,0.00193318,90532.0,90519.0,0.0797]
[1741022705209,0.00193318,90532.0,90518.0,0.0481398]
[1741022705384,0.00193318,90532.0,90519.0,0.220948]
[1741022705585,0.34071422,90533.0,90518.0,0.0481398]
[1741022705586,0.001,90519.0,90518.0,0.2138518]
[1741022705813,0.34071422,90533.0,90519.0,0.3]
[1741022706008,0.34071422,90533.0,90532.0,0.165687]
[1741022706431,0.220862,90554.0,90532.0,0.165687]
[1741022706432,0.3234,90544.0,90543.0,0.165667]
[1741022706656,0.165618,90570.0,90551.0,0.295952]
[1741022706859,0.01156833,90572.0,90551.0,0.294952]
[1741022707009,0.22275444,90571.0,90551.0,0.1303]
[1741022707216,0.08812,90574.0,90551.0,0.295952]
[1741022707414,0.220826,90569.0,90551.0,0.30743206]
[1741022707638,0.08812,90574.0,90551.0,0.30743206]
[1741022708454,0.165616,90571.0,90551.0,0.30743206]
[1741022708697,0.08812,90574.0,90551.0,0.60743206]
[1741022708899,0.165606,90576.0,90551.0,0.62197291]
[1741022709036,0.00193222,90576.0,90551.0,0.60743206]
[1741022709233,0.165625,90567.0,90551.0,0.60743206]
[1741022709470,0.220822,90571.0,90551.0,0.60743206]
[1741022709665,0.220818,90573.0,90551.0,0.60743206]
[1741022709907,0.3234,90577.0,90551.0,0.60743206]
[1741022710084,0.00193227,90576.0,90551.0,0.60743206]
[1741022710456,0.09001249,90576.0,90551.0,0.60743206]
[1741022710665,0.09001249,90576.0,90551.0,0.52453206]
[1741022710666,0.220833,90567.0,90551.0,0.52453206]
[1741022710864,0.165626,90565.0,90551.0,0.52453206]
[1741022711202,0.220833,90567.0,90551.0,0.52453206]
[1741022711379,0.220837,90565.0,90551.0,0.52453206]
[1741022711702,0.16563,90564.0,90551.0,0.52453206]
[1741022711914,0.30889,90576.0,90551.0,0.52453206]
[1741022711915,0.220837,90565.0,90551.0,0.52453206]
[1741022712113,0.220814,90574.0,90551.0,0.52453206]
[1741022712318,0.08808,90576.0,90551.0,0.52453206]
[1741022713190,0.3234,90566.0,90551.0,0.52453206]
[1741022714795,0.00193239,90565.0,90551.0,0.513052]
[1741022714993,0.00193239,90565.0,90551.0,0.0474]
[1741022715163,0.220843,90563.0,90541.0,0.0761]
[1741022715365,0.3234,90566.0,90541.0,0.0761]
[1741022715559,0.00193258,90565.0,90541.0,0.01139541]
[1741022715820,0.3234,90566.0,90551.0,0.165652]
[1741022716260,0.165636,90560.0,90551.0,0.165652]
[1741022716405,0.3234,90566.0,90541.0,0.01139541]
[1741022716612,0.165637,90560.0,90551.0,0.165652]
[1741022716811,0.165638,90559.0,90551.0,0.165652]
[1741022717176,0.220845,90562.0,90551.0,0.165652]
[1741022717391,0.3234,90566.0,90551.0,0.165652]
[1741022717732,0.3234,90566.0,90545.0,0.3]
[1741022717733,0.165632,90562.0,90545.0,0.3]
[1741022717940,0.165634,90561.0,90544.0,0.3]
[1741022718141,0.3234,90566.0,90544.0,0.3]
[1741022718367,0.220849,90560.0,90544.0,0.3]
[1741022718576,0.3234,90566.0,90544.0,0.3]
[1741022718577,0.22086,90555.0,90544.0,0.3]
[1741022718785,0.165649,90553.0,90544.0,0.3]
[1741022718988,0.3234,90552.0,90541.0,0.01107303]
[1741022719186,0.08997268,90551.0,90525.0,0.0476]
[1741022719418,0.165682,90535.0,90525.0,0.0476]
[1741022719611,0.165687,90532.0,90518.0,0.0003398]
[1741022719818,0.16762034,90532.0,90518.0,0.0003398]
[1741022719981,0.49102034,90532.0,90518.0,0.0003398]
[1741022720183,0.489087,90532.0,90518.0,0.0003398]
[1741022720973,0.489087,90532.0,90531.0,0.00045941]
[1741022721494,0.50740308,90532.0,90531.0,0.00045941]
[1741022722414,0.63810308,90532.0,90531.0,0.00045941]
[1741022722588,0.65264393,90532.0,90531.0,0.00045941]
[1741022722994,0.65164393,90532.0,90531.0,0.00045941]
[1741022723608,0.95164393,90532.0,90531.0,0.00045941]
[1741022724103,0.95264393,90532.0,90531.0,0.00045941]
[1741022724524,0.95164393,90532.0,90531.0,0.00045941]
[1741022724882,1.05564393,90532.0,90531.0,0.00045941]
[1741022725096,1.05564393,90532.0,90531.0,4.1e-07]
[1741022725297,1.15564393,90532.0,90531.0,4.1e-07]
[1741022725729,1.18814426,90532.0,90531.0,4.1e-07]
[1741022726134,0.1,90521.0,90518.0,0.0003398]
[1741022726332,0.65615185,90519.0,90518.0,0.00039644]
[1741022727105,0.68334611,90519.0,90518.0,0.00039644]
[1741022727272,0.65615185,90519.0,90518.0,0.00039644]
[1741022727483,0.55615185,90519.0,90518.0,0.00039644]
[1741022728205,0.56315185,90519.0,90518.0,0.00039644]
[1741022728702,0.66315185,90519.0,90518.0,0.00039644]
[1741022728912,0.56315185,90519.0,90518.0,0.00039644]
[1741022729114,0.548611,90519.0,90518.0,0.00039644]
[1741022729318,0.548611,90519.0,90471.0,0.0004]
[1741022729319,0.265714,90517.0,90471.0,0.0004]
[1741022729643,0.58025485,90517.0,90516.0,7.9e-07]
[1741022729830,0.80365485,90517.0,90516.0,7.9e-07]
[1741022730442,0.80765485,90517.0,90516.0,7.9e-07]
[1741022730666,0.70765485,90517.0,90516.0,7.9e-07]
[1741022730842,0.70365485,90517.0,90516.0,7.9e-07]
[1741022731067,0.70865485,90517.0,90516.0,7.9e-07]
[1741022731284,0.71565485,90517.0,90516.0,7.9e-07]
[1741022731455,0.72797827,90517.0,90516.0,7.9e-07]
[1741022731685,0.81597827,90517.0,90516.0,7.9e-07]
[1741022731899,0.80897827,90517.0,90516.0,7.9e-07]
[1741022732301,0.70897827,90517.0,90516.0,7.9e-07]
[1741022732688,0.71797827,90517.0,90516.0,7.9e-07]
[1741022732901,0.81797827,90517.0,90516.0,7.9e-07]
[1741022733072,1.13698183,90517.0,90516.0,7.9e-07]
[1741022733265,1.13998183,90517.0,90516.0,7.9e-07]
[1741022733710,1.13698183,90517.0,90516.0,7.9e-07]
[1741022733889,1.13598183,90517.0,90516.0,7.9e-07]
[1741022734086,1.14098183,90517.0,90516.0,0.00034139]
[1741022734310,1.13698183,90517.0,90516.0,0.00034139]
[1741022734519,1.14398183,90517.0,90516.0,0.00034139]
[1741022735143,1.03898183,90517.0,90516.0,0.00034139]
[1741022735354,1.13898183,90517.0,90516.0,0.00034139]
[1741022735559,1.14598183,90517.0,90516.0,0.00034139]
[1741022735733,1.13898183,90517.0,90516.0,0.00034139]
[1741022735931,1.14398183,90517.0,90516.0,0.00034139]
[1741022736398,1.12665841,90517.0,90516.0,0.00034139]
[1741022736607,1.13065841,90517.0,90516.0,3.9e-07]
[1741022737012,1.12365841,90517.0,90516.0,3.9e-07]
[1741022737243,1.13065841,90517.0,90516.0,3.9e-07]
[1741022737438,1.12165841,90517.0,90516.0,3.9e-07]
[1741022737557,1.12765841,90517.0,90516.0,3.9e-07]
[1741022738181,1.12065841,90517.0,90516.0,3.9e-07]
[1741022738652,0.165797,90472.0,90471.0,0.0004]
[1741022738801,0.165797,90472.0,90471.0,0.00051866]
[1741022738802,0.57680056,90472.0,90471.0,0.00051866]
[1741022740174,0.57780056,90472.0,90471.0,0.00051866]
[1741022740380,0.57880056,90472.0,90471.0,0.00051866]
[1741022740521,0.57780056,90472.0,90471.0,0.00051866]
[1741022740929,0.57880056,90472.0,90471.0,0.00051866]
[1741022742235,0.41300356,90472.0,90471.0,0.16631666]
[1741022742628,0.41300356,90472.0,90471.0,0.00051866]
[1741022742755,0.41300356,90472.0,90471.0,0.16631666]
[1741022743199,0.57880056,90472.0,90471.0,0.00051866]
[1741022744027,0.41300356,90472.0,90471.0,0.00051866]
[1741022744570,0.57880056,90472.0,90471.0,0.00051866]
[1741022744799,0.41300356,90472.0,90471.0,0.00051866]
[1741022745024,0.32500356,90472.0,90471.0,0.00051866]
[1741022745185,0.41296356,90472.0,90471.0,0.00051866]
[1741022745372,0.41296356,90472.0,90471.0,0.16665746]
[1741022746242,0.43028942,90472.0,90471.0,0.00085946]
[1741022747193,0.41296356,90472.0,90471.0,0.00085946]
[1741022747828,0.41296356,90472.0,90471.0,0.16665746]
[1741022749329,0.32500356,90472.0,90471.0,0.16665746]
[1741022749569,0.002,90472.0,90471.0,0.46665746]
[1741022749745,0.002,90472.0,90471.0,0.54225746]
[1741022749969,0.001,90472.0,90471.0,0.59035746]
[1741022750192,0.165774,90485.0,90472.0,0.3]
[1741022750421,0.001,90472.0,90471.0,0.29035746]
[1741022751920,0.002,90472.0,90471.0,0.29435746]
[1741022752965,0.001,90472.0,90471.0,0.29435746]
[1741022753148,0.001,90472.0,90471.0,0.13155946]
[1741022753316,0.001,90472.0,90471.0,0.22175746]
[1741022753525,0.002,90472.0,90471.0,0.22875746]
[1741022753802,0.001,90472.0,90471.0,0.22175746]
[1741022753964,0.002,90472.0,90471.0,0.22875746]
[1741022756761,0.49080056,90472.0,90471.0,0.01485946]
[1741022758797,0.48980056,90472.0,90471.0,0.00785946]
[1741022759014,0.50712604,90472.0,90471.0,0.00485946]
[1741022759220,0.50712604,90472.0,90471.0,0.00685946]
[1741022759516,0.50812604,90472.0,90471.0,0.00685946]
[1741022760057,0.49080056,90472.0,90471.0,0.00685946]
[1741022761671,0.50193456,90472.0,90471.0,0.00685946]
[1741022761997,0.50093456,90472.0,90471.0,0.00285946]
[1741022762121,0.50093456,90472.0,90471.0,0.00485946]
[1741022762490,0.49993456,90472.0,90471.0,0.00285946]
[1741022762634,0.49993456,90472.0,90471.0,0.00585946]
[1741022764440,0.51726245,90472.0,90471.0,0.00585946]
[1741022765081,0.50612845,90472.0,90471.0,0.00585946]
[1741022765286,0.34033145,90472.0,90471.0,0.00585946]
[1741022765687,0.42821145,90472.0,90471.0,0.00585946]
[1741022765888,0.42821145,90472.0,90471.0,0.17165746]
[1741022766093,0.0782,90499.0,90485.0,0.165771]
[1741022766094,0.165759,90493.0,90485.0,0.165771]
[1741022766298,0.08788,90483.0,90471.0,0.00585946]
[1741022766502,0.165781,90481.0,90471.0,0.00585946]
[1741022766736,0.32300356,90482.0,90471.0,0.00585946]
[1741022766969,0.08788,90483.0,90482.0,0.165778]
[1741022767412,0.41128,90483.0,90482.0,0.165778]
[1741022768101,0.41128,90483.0,90471.0,0.22192346]
[1741022768335,0.41128,90483.0,90471.0,0.00085946]
[1741022768569,0.165783,90480.0,90471.0,0.00085946]
[1741022768795,0.0001705,90472.0,90471.0,0.00085946]
[1741022769510,0.0001705,90472.0,90471.0,0.00285946]
[1741022769713,0.0001705,90472.0,90471.0,0.16865746]
[1741022769843,0.0001705,90472.0,90471.0,0.00285946]
[1741022770452,0.0001705,90472.0,90471.0,0.00185946]
[1741022770655,0.0001705,90472.0,90471.0,0.00585946]
[1741022770882,0.1659675,90472.0,90471.0,0.00585946]
[1741022771087,0.0001705,90472.0,90471.0,0.00585946]
[1741022772438,0.50165231,90472.0,90471.0,0.01085946]
[1741022772613,0.51898109,90472.0,90471.0,0.00585946]
[1741022772969,0.51898109,90472.0,90471.0,0.00185946]
[1741022772970,0.51798109,90472.0,90471.0,0.00185946]
[1741022773786,0.50065231,90472.0,90471.0,0.00185946]
[1741022775706,0.50165231,90472.0,90471.0,0.00185946]
[1741022776156,0.50065231,90472.0,90471.0,0.00085946]
[1741022776535,0.50265231,90472.0,90471.0,0.00085946]
[1741022776959,0.62465231,90472.0,90471.0,0.00085946]
[1741022777202,0.63919316,90472.0,90471.0,0.00085946]
[1741022777410,1.1807276,90472.0,90471.0,0.00085946]
[1741022777744,1.07281116,90472.0,90471.0,0.00085946]
[1741022777886,1.07181116,90472.0,90471.0,4.6e-07]
[1741022778228,1.17181116,90472.0,90471.0,4.6e-07]
[1741022778447,0.690817,90461.0,90460.0,0.0003402]
[1741022778603,0.690817,90461.0,90460.0,0.00073596]
[1741022778604,0.723435,90461.0,90460.0,0.00073596]
[1741022778785,0.83797585,90461.0,90460.0,0.00073596]
[1741022779187,0.73797585,90461.0,90460.0,9.6e-07]
[1741022779407,0.73797585,90461.0,90444.0,0.0003406]
[1741022779408,0.544746,90445.0,90444.0,0.0003406]
[1741022779604,1.10310439,90445.0,90444.0,0.00045926]
[1741022780040,0.165877,90428.0,90427.0,0.01055136]
[1741022780243,0.165877,90428.0,90427.0,0.01067011]
[1741022780440,0.16781272,90428.0,90427.0,0.01067011]
[1741022781023,0.165877,90428.0,90427.0,0.01067011]
[1741022781223,0.00193555,90435.0,90427.0,0.01067011]
[1741022781457,0.00193546,90434.0,90427.0,0.01067011]
[1741022781651,0.16587,90432.0,90427.0,0.01067011]
[1741022781849,0.3,90436.0,90427.0,0.17654911]
[1741022782051,0.221151,90436.0,90427.0,0.01067011]
[1741022782370,0.221155,90434.0,90427.0,0.01067011]
[1741022782588,0.3,90439.0,90427.0,0.01067011]
[1741022782589,0.30816147,90439.0,90427.0,0.01067011]
[1741022782792,0.165877,90428.0,90427.0,0.01067011]
[1741022783141,0.253677,90428.0,90427.0,0.01067011]
[1741022784369,0.57707654,90428.0,90427.0,0.01067011]
[1741022784568,0.58840307,90428.0,90427.0,0.01067011]
[1741022785076,0.60573894,90428.0,90427.0,0.01067011]
[1741022785281,0.60573894,90428.0,90427.0,0.00967011]
[1741022785475,0.59040307,90428.0,90427.0,0.00967011]
[1741022785725,0.58940307,90428.0,90427.0,0.00967011]
[1741022786186,0.58840307,90428.0,90427.0,0.00967011]
[1741022787436,0.41119954,90428.0,90427.0,0.00967011]
[1741022788136,0.57807654,90428.0,90427.0,0.00967011]
[1741022788566,0.57707654,90428.0,90427.0,0.00967011]
[1741022788802,0.57807654,90428.0,90427.0,0.00967011]
[1741022789187,0.57707654,90428.0,90427.0,0.00967011]
[1741022789967,0.59541247,90428.0,90427.0,0.00967011]
[1741022790817,0.59441247,90428.0,90427.0,0.00967011]
[1741022791018,0.59541247,90428.0,90427.0,0.00967011]
[1741022791191,0.67671247,90428.0,90427.0,0.00967011]
[1741022791817,0.65837654,90428.0,90427.0,0.00967011]
[1741022792218,0.65937654,90428.0,90427.0,0.00967011]
[1741022792421,1.07391739,90428.0,90427.0,0.00967011]
[1741022792641,0.11454085,90426.0,90425.0,7.1e-07]
[1741022792861,0.221197,90417.0,90378.0,0.081]
[1741022793184,0.56244385,90414.0,90373.0,0.0487]
[1741022793322,0.56244385,90414.0,90367.0,0.221317]
[1741022793508,0.56244385,90414.0,90365.0,0.00836469]
[1741022793713,0.66244385,90414.0,90367.0,0.165988]
[1741022793921,0.66244385,90414.0,90359.0,0.0487]
[1741022794291,0.165943,90392.0,90359.0,0.0487]
[1741022794453,0.97561935,90392.0,90391.0,0.00051878]
[1741022794656,0.97368268,90392.0,90391.0,0.00051878]
[1741022794822,0.99430768,90392.0,90391.0,0.00051878]
[1741022795252,1.13111365,90392.0,90391.0,7.8e-07]
[1741022795450,1.10263991,90392.0,90391.0,7.8e-07]
[1741022795691,1.08201491,90392.0,90391.0,7.8e-07]
[1741022795869,0.65610485,90381.0,90351.0,0.0004]
[1741022796273,0.166017,90352.0,90351.0,0.0004]
[1741022796472,0.57717583,90352.0,90351.0,0.00079623]
[1741022797465,0.32339883,90352.0,90351.0,0.00079623]
[1741022797640,0.41219883,90352.0,90351.0,0.16681523]
[1741022798296,0.41119883,90352.0,90351.0,0.16681523]
[1741022798641,0.41219883,90352.0,90351.0,0.16681523]
[1741022799520,0.32439883,90352.0,90351.0,0.47834308]
[1741022799769,0.32539883,90352.0,90351.0,0.47834308]
[1741022799937,0.32439883,90352.0,90351.0,0.47834308]
[1741022800324,0.001,90352.0,90351.0,0.47834308]
[1741022800550,0.001,90352.0,90351.0,0.17834308]
[1741022801012,0.32339883,90368.0,90367.0,0.465989]
[1741022801927,0.10514483,90380.0,90379.0,0.165967]
[1741022801928,0.01734483,90380.0,90379.0,0.165967]
[1741022802159,0.01734483,90380.0,90379.0,0.164967]
[1741022802385,0.00193622,90394.0,90370.0,0.3]
[1741022802610,0.32339883,90397.0,90369.0,0.3]
[1741022803524,0.32339883,90397.0,90368.0,0.12979623]
[1741022803695,0.48933383,90397.0,90389.0,0.165947]
[1741022803839,0.32339883,90397.0,90391.0,0.165945]
[1741022804035,0.08776,90396.0,90393.0,0.165941]
[1741022804265,0.08776,90396.0,90395.0,0.165938]
[1741022804467,0.32339883,90396.0,90385.0,0.01117991]
[1741022804667,0.32339883,90396.0,90370.0,0.28250969]
[1741022804668,0.08776,90400.0,90395.0,0.165938]
[1741022804868,0.08776,90415.0,90384.0,0.221278]
[1741022805067,0.08776,90415.0,90380.0,0.28250969]
[1741022805068,0.08969576,90415.0,90380.0,0.00824585]
[1741022805291,0.08969576,90415.0,90370.0,0.28250969]
[1741022805292,0.08969576,90415.0,90402.0,0.165925]
[1741022805528,0.08776,90415.0,90409.0,0.165912]
[1741022805905,0.08776,90415.0,90390.0,0.28250969]
[1741022806136,0.08776,90415.0,90387.0,0.3]
[1741022806354,0.165919,90406.0,90397.0,0.165933]
[1741022806511,0.00193568,90414.0,90379.0,0.3]
[1741022806512,0.165916,90407.0,90379.0,0.3]
[1741022806716,0.165916,90407.0,90390.0,0.3]
[1741022806717,0.00193593,90407.0,90390.0,0.3]
[1741022806917,0.221224,90406.0,90396.0,0.165936]
[1741022807122,0.165914,90409.0,90379.0,0.3]
[1741022807326,0.221212,90411.0,90379.0,0.3]
[1741022807327,0.00193593,90408.0,90379.0,0.31143431]
[1741022807529,0.001,90406.0,90397.0,0.004]
[1741022807777,0.001,90406.0,90399.0,0.165929]
[1741022807950,0.165923,90404.0,90397.0,0.004]
[1741022808161,0.32339883,90403.0,90397.0,0.004]
[1741022808350,0.32339883,90403.0,90402.0,0.165925]
[1741022809774,0.32339883,90403.0,90402.0,0.005]
[1741022810178,0.48932183,90403.0,90402.0,0.005]
[1741022810419,0.32339883,90403.0,90402.0,0.170925]
[1741022811572,0.32339883,90403.0,90402.0,0.165925]
[1741022811688,0.32339883,90403.0,90397.0,0.006]
[1741022811892,0.32339883,90403.0,90402.0,0.004]
[1741022812244,0.48932183,90403.0,90402.0,0.004]
[1741022812447,0.48932183,90403.0,90370.0,0.00818673]
[1741022812448,0.165943,90393.0,90367.0,0.0466]
[1741022812651,0.165945,90391.0,90367.0,0.0466]
[1741022812893,0.253665,90391.0,90367.0,0.0466]
[1741022813088,0.57706383,90391.0,90367.0,0.0466]
[1741022813245,0.57706383,90391.0,90375.0,0.221298]
[1741022813446,0.57706383,90391.0,90378.0,0.165969]
[1741022813716,0.57706383,90391.0,90370.0,0.221312]
[1741022814011,0.57706383,90391.0,90390.0,0.0051706]
[1741022814397,0.57706383,90391.0,90390.0,0.0001706]
[1741022814602,0.57706383,90391.0,90390.0,0.0041706]
[1741022815010,0.57706383,90391.0,90390.0,0.0011706]
[1741022815496,0.57706383,90391.0,90390.0,0.0001706]
[1741022815891,0.57706383,90391.0,90390.0,0.0021706]
[1741022816372,0.57706383,90391.0,90390.0,0.0061706]
[1741022816546,0.57706383,90391.0,90390.0,0.0021706]
[1741022816966,0.57706383,90391.0,90390.0,0.0031706]
[1741022817165,0.41111883,90391.0,90390.0,0.0001706]
[1741022817528,0.41111883,90391.0,90390.0,0.0041706]
[1741022817731,0.57706383,90391.0,90390.0,0.0041706]
[1741022818122,0.32339883,90391.0,90390.0,0.1701176]
[1741022818333,0.41107883,90391.0,90390.0,0.1711176]
[1741022818733,0.41107883,90391.0,90390.0,0.1661176]
[1741022818938,0.41107883,90391.0,90390.0,0.1691176]
[1741022819536,0.32339883,90391.0,90390.0,0.1661176]
[1741022819739,0.32339883,90391.0,90390.0,0.1711176]
[1741022820083,0.32339883,90391.0,90390.0,0.18213227]
[1741022820250,0.32339883,90391.0,90390.0,0.48213227]
[1741022820688,0.32339883,90391.0,90390.0,0.48713227]
[1741022820894,0.32339883,90391.0,90390.0,0.4761176]
[1741022821079,0.32339883,90391.0,90390.0,0.4711176]
[1741022821274,0.32439883,90391.0,90390.0,0.4771176]
[1741022821504,0.32439883,90391.0,90390.0,0.48851049]
[1741022821751,0.32439883,90391.0,90390.0,0.4771176]
[1741022822442,0.32439883,90391.0,90390.0,0.3111706]
[1741022822743,0.32439883,90391.0,90390.0,0.1771176]
[1741022824739,0.32339883,90391.0,90390.0,0.1661176]
[1741022824933,0.32439883,90391.0,90390.0,0.2599176]
[1741022825276,0.32439883,90391.0,90390.0,0.2539176]
[1741022825500,0.32339883,90391.0,90390.0,0.2489176]
[1741022825850,0.32339883,90391.0,90390.0,0.2559176]
[1741022826283,0.32339883,90391.0,90390.0,0.1731176]
[1741022827329,0.32339883,90391.0,90390.0,0.1801176]
[1741022827936,0.48934383,90391.0,90390.0,0.0141706]
[1741022828848,0.5008626,90391.0,90390.0,0.0071706]
[1741022828998,0.5008626,90391.0,90390.0,0.0001706]
[1741022829206,0.5776626,90391.0,90390.0,0.0001706]
[1741022830041,0.89220345,90391.0,90390.0,0.0001706]
[1741022830442,0.8776626,90391.0,90390.0,0.0011706]
[1741022831391,0.48783883,90391.0,90390.0,0.0011706]
[1741022831681,0.65378383,90391.0,90390.0,0.0011706]
[1741022831815,0.48783883,90391.0,90390.0,0.0011706]
[1741022832012,0.32339883,90391.0,90390.0,0.0011706]
[1741022832217,0.41103883,90391.0,90390.0,0.1671176]
[1741022832435,0.34074212,90391.0,90390.0,0.1671176]
[1741022832838,0.01734329,90391.0,90390.0,0.4671176]
[1741022833042,0.32339883,90401.0,90400.0,0.465929]
[1741022833240,0.01733911,90414.0,90402.0,0.513925]
[1741022833641,0.01733911,90414.0,90402.0,0.52846585]
[1741022833844,0.32339883,90418.0,90402.0,0.52846585]
[1741022834624,0.01733594,90423.0,90420.0,0.465892]
[1741022834859,0.0980851,90421.0,90420.0,0.465892]
[1741022836328,0.00011812,90421.0,90420.0,0.465892]
[1741022837197,0.00011812,90421.0,90420.0,0.472892]
[1741022837394,0.00011812,90421.0,90420.0,0.479892]
[1741022838200,0.00011812,90421.0,90420.0,0.014]
[1741022838922,0.16600812,90421.0,90420.0,0.014]
[1741022840207,0.49134253,90421.0,90420.0,0.007]
[1741022840441,0.48940695,90421.0,90420.0,0.005]
[1741022840639,0.48940695,90421.0,90420.0,0.01]
[1741022841137,0.32351695,90421.0,90399.0,0.221239]
[1741022841368,0.165918,90407.0,90398.0,0.165932]
[1741022841559,0.08756,90406.0,90400.0,0.002]
[1741022842313,0.08756,90406.0,90405.0,0.16592]
[1741022844706,0.08756,90406.0,90405.0,0.17292]
[1741022844904,0.10489765,90406.0,90405.0,0.17992]
[1741022845134,0.10589765,90406.0,90405.0,0.17992]
[1741022845285,0.08856,90406.0,90405.0,0.17992]
[1741022846851,0.41195883,90406.0,90405.0,0.17992]
[1741022849482,0.41195883,90406.0,90405.0,0.014]
[1741022850297,0.41195883,90406.0,90405.0,0.17992]
[1741022850700,0.42929731,90406.0,90405.0,0.17992]
[1741022853034,0.34173731,90406.0,90405.0,0.17992]
[1741022853237,0.01833848,90406.0,90405.0,0.47992]
[1741022853980,0.01833848,90406.0,90405.0,0.47292]
[1741022854258,0.01733848,90406.0,90405.0,0.47292]
[1741022854657,0.01833848,90406.0,90405.0,0.47992]
[1741022854866,4.8e-07,90406.0,90405.0,0.47992]
[1741022856288,4.8e-07,90406.0,90405.0,0.47292]
[1741022856482,0.32339883,90420.0,90419.0,0.165894]
[1741022857306,0.32339883,90420.0,90419.0,0.47689534]
[1741022858220,0.32339883,90420.0,90419.0,0.48089534]
[1741022858935,0.32339883,90420.0,90419.0,0.48489534]
[1741022859497,0.32339883,90420.0,90419.0,0.48089534]
[1741022859694,0.32339883,90420.0,90419.0,0.48689534]
[1741022859918,0.00045832,90421.0,90420.0,0.465892]
[1741022860470,3.2e-07,90421.0,90420.0,0.52633285]
[1741022860686,5.2e-07,90428.0,90427.0,0.565879]
[1741022860919,5.2e-07,90428.0,90427.0,1.77796608]
[1741022861213,5.2e-07,90428.0,90427.0,0.68041985]
[1741022861413,5.2e-07,90428.0,90427.0,1.77796608]
[1741022862838,5.2e-07,90428.0,90427.0,1.78496608]